Cogmind - Beta 16 @@@ ROGUE MODE // 2025.10.27 @ 21:33:03 Player: xgames Result: Self-destructed Performance ------------- Evolutions (1) 500 Regions Visited (3) 600 Robots Destroyed (12) 60 Value Destroyed (329) 329 Prototype IDs (0) 0 Alien Tech Used (0) 0 Bonus (0) 0 TOTAL SCORE: 1489 Bonus ------- None Cogmind --------- Core Integrity 400/400 Matter 300/300 Energy 250/250 System Corruption 0% Temperature Cool (0) Movement Walking (190) Ox1 Location -9/Materials Parts ------- > --- POWER (1) -------- Ion Engine > --- PROPULSION (2) --- Light Treads Aluminum Leg > --- UTILITY (4) ------ Medium Storage Unit Seismic Detector > --- WEAPON (2) ------- Medium Laser Assault Rifle > --- INVENTORY (10) --- Aluminum Leg Compact Wheel Small Laser Peak State ------------ > --- POWER ------------ Ion Engine > --- PROPULSION ------- Light Treads Wheel > --- UTILITY ---------- Small Storage Unit Improved Terrain Scanner > --- WEAPON ----------- Medium Laser Small Laser > --- INVENTORY -------- Ion Engine Light Treads Aluminum Leg Aluminum Leg Compact Wheel Seismic Detector Assault Rifle [Rating: 9] Favorites ----------- Power Ion Engine Engine Ion Engine Propulsion Light Treads Treads Light Treads Leg Aluminum Leg Wheel Wheel Utility Seismic Detector Device Seismic Detector Storage Medium Storage Unit Weapon Small Laser Energy Gun Small Laser Ballistic Gun Assault Rifle Launcher Grenade Launcher Build | -11 -10 -10 -9 ------- Run | Yrd Mat Min Mat Slots Evolved 2 | . . . 2 Power . | . . . . Propulsion . | . . . . Utility 2 | . . . 2 Weapon . | . . . . Parts Attached 15 | 7 5 3 . Power 2 | 1 1 . . Engine 2 | 1 1 . . Core . | . . . . Reactor . | . . . . Propulsion 5 | 2 2 1 . Treads 2 | 1 1 . . Leg 1 | . . 1 . Wheel 2 | 1 1 . . Hover . | . . . . Flight . | . . . . Utility 4 | 2 1 1 . Device 2 | 1 1 . . Storage 2 | 1 . 1 . Processor . | . . . . Hackware . | . . . . Protection . | . . . . Artifact . | . . . . Weapon 4 | 2 1 1 . Energy Gun 2 | 2 . . . Energy Cannon . | . . . . Ballistic Gun 1 | . 1 . . Ballistic Cannon . | . . . . Launcher 1 | . . 1 . Special Weapon . | . . . . Impact Weapon . | . . . . Slashing Weapon . | . . . . Piercing Weapon . | . . . . Special Melee Weapon . | . . . . Unidentified Prototypes . | . . . . Parts Lost 5 | . 3 2 . Power 1 | . 1 . . Propulsion 2 | . 1 1 . Utility 1 | . 1 . . Weapon 1 | . . 1 . Highest Loss Streak 3 | . 3 2 . To Critical Strikes . | . . . . Average Backups 5 | 5 7 4 3 Power . | . . . . Propulsion 3 | 3 3 2 2 Utility . | . . . . Weapon 1 | 1 1 1 1 Tool/Special . | . . . . Unused Backups 1 | . . . 1 Power . | . . . . Propulsion 1 | . . . 1 Utility . | . . . . Weapon . | . . . . Tool/Special . | . . . . Average Slot Usage (%) 98 | . 98 99 77 Engine 13 | . 14 14 11 Treads 22 | . 14 26 11 Leg 1 | . . 1 11 Wheel 3 | . 13 . . Device 13 | . 13 14 11 Storage 13 | . 14 14 11 Energy Gun 16 | . 24 13 11 Ballistic Gun 10 | . 3 14 11 Peak Build Rating 9 | 9 9 7 7 Average Rating 7 | 5 8 6 7 On Entrance 5 | . 9 7 7 Avg Prop Armor Cover (%) 10 | 5 13 10 11 Naked Turns . | . . . . Heaviest Build 20 | 14 14 20 20 Greatest Support 40 | 20 40 20 10 Greatest Overweight (x) 2 | 2 1 1 1 Average Overweight (x) . | . . . 1 Largest Inventory Capacity 10 | 8 8 10 10 Average Capacity 9 | 7 8 9 10 Most Carried 8 | 8 8 6 3 Average Carried 5 | 5 7 4 3 Final Capacity 10 | 8 8 10 10 Final Carried 7 | 7 5 3 3 Class Distribution -------------------- 100% | Mutant Dominant Class ---------------- Mutant | -10/Materials Mutant | -10/Mines Mutant | -9/Materials Resources | -11 -10 -10 -9 ----------- Run | Yrd Mat Min Mat Matter Collected 404 | 260 68 76 . Remotely . | . . . . Salvage Created 342 | 35 307 . . Parts 26 | 7 19 . . Haulers Intercepted . | . . . . Recyclers Shooed 1 | . 1 . . Parts Field Recycled . | . . . . Retrieved Matter . | . . . . Parts Self-Destructed . | . . . . Prevented . | . . . . Parts Restored . | . . . . Kills | -11 -10 -10 -9 ------- Run | Yrd Mat Min Mat Combat Hostiles Destroyed 9 | . 7 2 . Guns 8 | . 7 1 . AOE 1 | . . 1 . Classes Destroyed 5 | 1 3 1 . Tunneler 2 | 2 . . . Recycler 1 | . 1 . . Swarmer 2 | . 2 . . Grunt 5 | . 5 . . Demolisher 2 | . . 2 . Best Kill Streak 6 | 1 6 2 . Combat Bots Only 5 | . 5 2 . Max Kills in Single Turn 1 | 1 1 1 . Gunslinging . | . . . . Exploded 1 | . . 1 . Melee . | . . . . Uniques/NPCs Destroyed . | . . . . Combat | -11 -10 -10 -9 -------- Run | Yrd Mat Min Mat Hostile Shots Fired 77 | . 67 8 2 Missed 24 | . 23 1 . Hits 53 | . 44 7 2 Projectile 53 | . 44 7 2 AOE 8 | . . 8 . Critical Strikes 2 | . 1 . 1 Damage Taken 792 | . 477 283 32 Core 147 | . 99 48 . Absorbed by Shields . | . . . . Core Remaining (%) 70 | 100 . 41 . Volleys Fired 38 | 3 31 4 . Largest 2 | 2 2 2 . Hottest 90 | 90 90 70 . Shots Fired 66 | 6 55 5 . Gun 63 | 6 55 2 . Cannon . | . . . . Launcher 3 | . . 3 . Special . | . . . . Kinetic 8 | . 7 1 . Thermal 55 | 6 48 1 . Explosive 3 | . . 3 . Electromagnetic . | . . . . Robot Hit Streak 6 | 4 6 1 . Robot Miss Streak 4 | 1 4 1 . Penetration Max . | . . . . Secondary Targets . | . . . . Shots Hit Robots 39 | 4 32 3 . Core Hits 24 | 2 16 6 . Critical Kills . | . . . . Critical Parts Destroyed . | . . . . Critical Strikes . | . . . . Melee Attacks . | . . . . Impact . | . . . . Slashing . | . . . . Piercing . | . . . . Sneak Attacks . | . . . . Combat Hostiles . | . . . . Follow-up Attacks . | . . . . Damage Inflicted 524 | 60 399 65 . Guns 474 | 60 399 15 . Cannons . | . . . . Explosions 50 | . . 50 . Melee . | . . . . Ramming . | . . . . Kinetic 40 | . 25 15 . Thermal 434 | 60 374 . . Explosive 50 | . . 50 . Electromagnetic . | . . . . Impact . | . . . . Slashing . | . . . . Piercing . | . . . . Highest Corruption . | . . . . Average Corruption . | . . . . Corruption Purged . | . . . . Corruption Blocked . | . . . . Overload Shots . | . . . . Overflow Damage . | . . . . Projectiles . | . . . . Explosions . | . . . . Melee . | . . . . Knockbacks . | . . . . Impact . | . . . . Kinetic . | . . . . Secondary . | . . . . Self-Inflicted Damage . | . . . . Shots . | . . . . Rammed . | . . . . Targets Rammed . | . . . . Kicked . | . . . . Crushed . | . . . . Highest Temperature 334 | 30 334 9 5 Average Temperature 107 | 17 120 6 5 Received Heat Transfer 252 | . 225 . 27 Effects 2 | . 2 . . Energy Bleed 1 | . 1 . . Interference 1 | . 1 . . Siege Activations . | . . . . Martial Activations . | . . . . Shielding Activations . | . . . . Robots Disrupted . | . . . . Combat Hostiles . | . . . . Robots Corrupted . | . . . . Combat Hostiles . | . . . . Parts Fried . | . . . . Impact Corruptions . | . . . . Robots Melted . | . . . . Combat Hostiles . | . . . . Parts Melted 1 | . 1 . . Heat Transferred 1177 | 161 1016 . . Parts Sabotaged . | . . . . Parts Stolen . | . . . . Parts Stripped . | . . . . Power Chain Reactions . | . . . . Alert | -11 -10 -10 -9 ------- Run | Yrd Mat Min Mat Maximum Alert Level . | . . . . Low Security (%) 100 | 100 100 100 100 Level 1 . | . . . . Level 2 . | . . . . Level 3 . | . . . . Level 4 . | . . . . Level 5 . | . . . . High Security . | . . . . Max Security . | . . . . Peak Influence 80 | 5 80 49 15 Initial 9 | . . 2 9 Average 8 | . 25 3 10 Influence Increases 269 | 10 185 59 15 Destroy 0b10 Robot/C 180 | . 140 40 . Destroy 0b10 Robot/NC 15 | 10 5 . . Destroy Leader 30 | . 20 10 . Successful Hack 5 | . 5 . . Destroy Structure 9 | . . 9 . Partial Spotted 15 | . . . 15 Lose Combat Pursuer 15 | . 15 . . Influence Decreases 254 | 10 178 41 25 Entered New Map 21 | . . 5 16 Time Decay 193 | 10 148 26 9 Lost Part 40 | . 30 10 . Squads Dispatched 2 | . 2 . . Investigation 1 | . 1 . . Extermination . | . . . . Reinforcement 1 | . 1 . . Assault . | . . . . Garrison . | . . . . Intercept . | . . . . Searches Triggered . | . . . . Construction Impeded . | . . . . Haulers Reinforced . | . . . . Active Scanning Responses . | . . . . Cargo Convoy Interrupts . | . . . . Stealth | -11 -10 -10 -9 --------- Run | Yrd Mat Min Mat Distress Signals 3 | . 2 . 1 Communications Jammed . | . . . . Distress Signals . | . . . . Times Spotted 25 | . 19 2 4 Peak Tracking Total 9 | . 6 2 9 Tactical Retreats 1 | . 1 . . Traps | -11 -10 -10 -9 ------- Run | Yrd Mat Min Mat Traps Triggered 1 | . 1 . . Indirectly . | . . . . Trap Hack Attempts . | . . . . Triggered . | . . . . Disarmed . | . . . . Reprogrammed . | . . . . Reused . | . . . . Traps Extracted . | . . . . Installed . | . . . . Triggered . | . . . . Machines | -11 -10 -10 -9 ---------- Run | Yrd Mat Min Mat Machines Disabled . | . . . . Max in Single Turn . | . . . . Machines Repaired . | . . . . Machines Dismantled . | . . . . Machines Sabotaged . | . . . . Overloaded Fab Kills . | . . . . Hacking | -11 -10 -10 -9 --------- Run | Yrd Mat Min Mat Machines Accessed 2 | . 2 . . Terminals 2 | . 2 . . Fabricators . | . . . . Repair Stations . | . . . . Recycling Units . | . . . . Scanalyzers . | . . . . Garrison Access . | . . . . Total Hacks 7 | . 7 . . Successful 1 | . 1 . . Failed 6 | . 6 . . Catastrophic 1 | . 1 . . Database Lockouts . | . . . . Manual 4 | . 4 . . Terminals 7 | . 7 . . Fabricators . | . . . . Repair Stations . | . . . . Recycling Units . | . . . . Scanalyzers . | . . . . Garrison Access . | . . . . Terminal Hacks . | . . . . Fabricator Hacks . | . . . . Repair Station Hacks . | . . . . Recycling Unit Hacks . | . . . . Scanalyzer . | . . . . Garrison Access Hacks . | . . . . Unauthorized Hacks 1 | . 1 . . Terminals 1 | . 1 . . Botnet 1 | . 1 . . Fabricators . | . . . . Repair Stations . | . . . . Recycling Units . | . . . . Scanalyzers . | . . . . Garrison Access . | . . . . Data Cores Recovered . | . . . . Used . | . . . . Hacking Detections 2 | . 2 . . Full Trace Events 1 | . 1 . . Feedback Events . | . . . . Feedback Blocked . | . . . . Robot Schematics Acquired . | . . . . Robots Built . | . . . . Authchips . | . . . . Time . | . . . . Total Robot Build Rating . | . . . . Part Schematics Acquired . | . . . . Parts Built . | . . . . Authchips . | . . . . Time . | . . . . Total Part Build Rating . | . . . . Part Studies Acquired . | . . . . Parts Repaired . | . . . . Time . | . . . . Parts Recycled . | . . . . Recycled Matter . | . . . . Retrieved Matter . | . . . . Retrieved Components . | . . . . Parts Scanalyzed . | . . . . Part Schematics Acquired . | . . . . Parts Damaged . | . . . . Bothacking | -11 -10 -10 -9 ------------ Run | Yrd Mat Min Mat Used RIF Installer . | . . . . Robots Hacked . | . . . . Non-combat . | . . . . Combat . | . . . . Robot Hacks Applied . | . . . . Relay Couplers Released . | . . . . Fabnet Peak Effective % . | . . . . Robots Rewired . | . . . . Allies Hacked . | . . . . Hacks Repelled . | . . . . Allies | -11 -10 -10 -9 -------- Run | Yrd Mat Min Mat Total Allies . | . . . . Largest Group . | . . . . Highest-Rated Group . | . . . . Highest-Rated Ally . | . . . . Total Orders . | . . . . Ally Attacks . | . . . . Total Damage . | . . . . Kills . | . . . . Allies Corrupted . | . . . . Allies Melted . | . . . . Intel | -11 -10 -10 -9 ------- Run | Yrd Mat Min Mat Active Infowar (turns) 1350 | 1 391 921 37 Terrain 281 | 1 280 . . Seismic 1069 | . 111 921 37 Robot Analysis Total . | . . . . Derelict Logs Recovered . | . . . . Drone Launches . | . . . . Drone Recoveries . | . . . . Exploration | -11 -10 -10 -9 ------------- Run | Yrd Mat Min Mat Turns Passed 1582 | 212 412 921 37 Spaces Moved 466 | 119 206 122 19 Core 27 | 27 . . . Treads 184 | 92 6 86 . Legs 55 | . . 36 19 Wheels 200 | . 200 . . Hover . | . . . . Flight . | . . . . Fastest Speed 50 | 50 80 160 190 Average Speed 134 | 153 99 168 190 Slowest Speed 190 | 160 160 190 190 Overloaded Moves . | . . . . Propulsion Burnouts . | . . . . Robots Hopped . | . . . . Potential Cave-ins . | . . . . Cave-ins Triggered . | . . . . Exploration Rate (%) 16 | 6 20 37 2 Regions Visited 3 Branch Regions 1 Pre-discovered Areas . | . . . . Known Exits Taken . | . . . . Unknown Exits Taken 3 | 1 1 1 . Scrap Searched . | . . . . Spaces Dug . | . . . . Terrain Destroyed 11 | . . 11 . Melee . | . . . . Projectile . | . . . . AOE 11 | . . 11 . Terrain Rammed . | . . . . Walls Destroyed . | . . . . Machines Disabled . | . . . . Actions | -11 -10 -10 -9 --------- Run | Yrd Mat Min Mat Total 1349 | 142 357 831 19 Wait 814 | . 115 699 . Move 463 | 118 205 121 19 Hop . | . . . . Pick Up 16 | 14 1 1 . Fast Attach . | . . . . Attach 12 | 7 3 2 . Detach . | . . . . Swap 5 | . 2 3 . Drop 1 | . . 1 . Fire 38 | 3 31 4 . Melee . | . . . . Ram . | . . . . Kick . | . . . . Crush . | . . . . Escape Stasis . | . . . . Rewire . | . . . . Trap . | . . . . Miscellaneous . | . . . . Route ------- -11/Scrapyard -10/Materials -10/Mines -9/Materials History --------- Turn | Location | Event 21 | -11/Scrapyard | Discovered new exit (range 15) 213 | -11/Scrapyard | Entered Materials 309 | -10/Materials | Build established: Mutant 524 | -10/Materials | Lost 3 parts (1p1n1u) 588 | -10/Materials | Discovered new exit (range 13) 625 | -10/Materials | Entered Mines 658 | -10/Mines | Assembled infested the area 663 | -10/Mines | Assisted by a Guerilla fighting off Assembled 1470 | -10/Mines | Core integrity fell below 50% 1530 | -10/Mines | Discovered new exit (range 7) 1546 | -10/Mines | Entered Materials 1546 | -9/Materials | Evolved 2 slots: Utility x2 1583 | -9/Materials | Self-destructed Last Messages --------------- 01431_ Acquired 10 matter. 01467_ Lgt. Treads destroyed. 01471_ D-53 Grenadier destroyed. 01475_ Grenade Launcher destroyed. 01475_ U-05 Engineer lays Concrete. 01476_ D-53 Grenadier destroyed. 01477_ U-05 Engineer lays Concrete. 01492_ The unstable cave ceiling collapses. 01492_ U-05 Engineer lays Concrete. 01497_ The unstable cave ceiling collapses. 01497_ U-05 Engineer lays Concrete. 01500_ Acquired 53 matter. 01503_ The unstable cave ceiling collapses. 01506_ K-01 Serf collects debris. 01530_ EXIT=FOUND PARAMETERS=UTILITY+2 LOCATION=UNKNOWN GOAL=ESCAPE 01573_ W-16 Scout sends out distress signal. 01579_ Critical hit (Burn: +37). Map ----- +----------------------------------------------------+ | ?????????????????????????????????????????????????? | | ?????????????????????????????????????????????????? | | ?????????????????????????????????????????????????? | | ?????????????????????????????????????????????????? | | ?????????????????????????????????????????????????? | | ?????????????????????????????????????????????????? | | ?????????????????????????????????????????????????? | | ?????????????????????????????????????????????????? | | ?????????????????????????????????????????????????? | | ??????????????????????? ????????????????????????? | | ??????????????????????? ????????????????????????? | | ??????????????????????? ????????????????????????? | | ??????????????????????? ????????????????????????? | | ??????????????????????? ????????????????????????? | | ??????????????????????? ????????????????????????? | | ??????????????????????? ????????????????????????? | | ??????????????????????? #???????????????????????? | | ??????????????????????? #???????????????????????? | | ???????????????????????# #???????????????????????? | | ???????????????????????# #???????????????????????? | | ???????????????????????# #???????????????????????? | | ???????????????????????# #???????????????????????? | | ???????????????????????# #???????????????????????? | | ???????????????????????# #???????????????????????? | | ???????????????????????# #####???????????????????? | | ???????????????????????# @ ########????????????? | | ???????????????????????# #????????????? | | ???????????????????????# " ####?????????? | | ???????????????????????# #??????? | | ???????????????????????# ############ #??????? | | ???????????????????????## ##???????????????????? | | ????????????????????????# w #????????????????????? | | ????????????????????????# #????????????????????? | | ????????????????????????# +????????????????????? | | ??????????????????????? #????????????????????? | | ?????????????????????? #????????????????????? | | ????????????????????? #????????????????????? | | ????????????????????#/#######????????????????????? | | ??????????????????? ???????????????????????????? | | ?????????????????? ????????????????????????????? | | ?????????????????# ?????????????????????????????? | | ?????????????????# ??????????????????????????????? | | ?????????????????#???????????????????????????????? | | ?????????????????????????????????????????????????? | | ?????????????????????????????????????????????????? | | ?????????????????????????????????????????????????? | | ?????????????????????????????????????????????????? | | ?????????????????????????????????????????????????? | | ?????????????????????????????????????????????????? | | ?????????????????????????????????????????????????? | +----------------------------------------------------+ Best States ------------- Heat Dissipation 28 Energy Generation 10 Energy Capacity 250 Matter Stores 300 Matter Capacity 300 Sight Range 16 Terrain Scan Range 16 Terrain Scan Density 10 Evasion (%) 41 Recoil Reduction 2 Item Schematics ----------------- None Robot Schematics ------------------ None Fabricated ------------ Nothing Repaired ---------- Nothing Studied --------- None Alien Tech Used ----------------- None Achievements -------------- None Challenges ------------ None Game ------ Seed ShadingHelicalAccelerator Manual? 0 Play Time 00:08:35 Cumulative 11.4 hours Start 2025.10.27 @ 21:23:52 End 2025.10.27 @ 21:33:03 Sessions 1 Manual Loads 0 Difficulty Rogue Special Mode None Game No. 24 Rogue 24 Adventurer 0 Explorer 0 Win Type - Total 0 Types 0/0/0/0/0/0/0/0/0/0 Lore% 9 Gallery% 15 Achievement% 10 Wizard Run 0 Options --------- Layout 1 ASCII 0 Keyboard 0 Movement Mouse Keybinds 0 Fullscreen 1 Font 24/Smallcaps Map View 76x35 Zoom Use 0% Tactical HUD 1 Map Filters NONE Filters NONE Steam 1 RUN: 01c82141-bd7f-423a-b3a7-ea51569c9a35